[Event "ROU-chT Women Superliga 2018"]
[Site "Sovata"]
[Date "2018.12.01"]
[Round "7"]
[White "Didiliuc, Dariana-Gabriela"]
[Black "Marin, Irina-Luiza"]
[Result "1/2-1/2"]
[ECO "A42"]
[WhiteElo "1784"]
[BlackElo "2032"]
[Annotator "NA RC"]
[PlyCount "154"]
[EventDate "2018.11.24"]
[EventType "team-tourn"]
[EventCountry "ROU"]
[SourceTitle "playchess.com"]
[Source "ChessBase"]
[SourceQuality "1"]
[TimeControl "40/5400+30:1800+30"]

1. d4 {[%emt 0:00:00]} d6 {[%emt 0:00:00]} 2. c4 {[%emt 0:00:00]} g6 {[%emt 0:00:00]} 3. e4 {[%emt 0:00:38]} Bg7 {[%emt 0:00:18]} 4. Nc3 {[%emt 0:00:28]} f5 {[%emt 0:00:31]} 5. f3 {[%emt 0:02:05] A42: Modern Defence: Averbakh Variation} (5. exf5 Bxf5 6. Nge2 Nh6 7. Ng3 O-O 8. Be2 Nc6 9. Be3 e5 10. dxe5 Nxe5 11. Qd2 Nhg4 12. Bg5 Qd7 13. O-O Be6 {0-1 (75) Gurevich,M (2641)-Banikas,H (2523) Korinthos 2002}) 5... Nh6 {[%emt 0:01:04]} 6. Be2 {[%emt 0:00:47]} Nc6 $146 {[%emt 0:01:45]} ({Predecessor:} 6... O-O 7. Be3 fxe4 8. fxe4 Nc6 9. Qd2 Ng4 10. Bxg4 Bxg4 11. h3 Bd7 12. Nf3 {0-1 (35) Mingatin,M (1962)-Sharafiev,A (2422) Kazan 2016}) 7. Be3 {[%emt 0:01:34]} O-O {[%emt 0:10:31]} 8. Qd2 {[%emt 0:04:22]} Nf7 {[%emt 0:00:36]} 9. exf5 {[%emt 0:05:49]} Bxf5 {[%emt 0:00:26]} 10. g4 {[%emt 0:00:31]} Bd7 {[%emt 0:01:09]} 11. h4 {[%emt 0:02:43]} e5 {[%emt 0:03:05]} 12. d5 {[%emt 0:00:33]} Nd4 {[%emt 0:02:17]} 13. h5 {[%emt 0:01:24]} Nxe2 {[%emt 0:06:24]} 14. Qxe2 {[%emt 0:04:17]} Ng5 {[%emt 0:15:47]} 15. hxg6 {[%emt 0:03:42]} hxg6 {[%emt 0:05:22]} 16. Ne4 {[%emt 0:02:09]} Nxe4 {[%emt 0:04:08]} 17. fxe4 {[%emt 0:00:20]} Rf4 {[%emt 0:01:38]} 18. Bxf4 {[%emt 0:01:25]} exf4 {[%emt 0:00:06]} 19. O-O-O {[%emt 0:04:49]} Qf6 {[%emt 0:00:55]} 20. g5 {[%emt 0:01:56]} Qxg5 {[%emt 0:02:34]} 21. Nf3 {[%emt 0:01:08]} Qf6 {[%emt 0:00:23]} 22. Rdg1 {[%emt 0:02:54]} Re8 {[%emt 0:01:12]} 23. Ng5 {[%emt 0:02:40]} Bf5 {[%emt 0:06:49]} 24. Rh2 {[%emt 0:07:03]} f3 {[%emt 0:13:47]} 25. Qxf3 {[%emt 0:09:21]} Qd4 {[%emt 0:01:08]} 26. Rf1 {[%emt 0:06:22]} Qxc4+ {[%emt 0:12:47]} 27. Rc2 {[%emt 0:00:42]} Qb4 {[%emt 0:01:23]} 28. Kb1 {[%emt 0:01:25]} Rxe4 {[%emt 0:02:59]} 29. Nxe4 {[%emt 0:02:30]} Qxe4 {[%emt 0:00:10]} 30. Qxe4 {[%emt 0:01:17]} Bxe4 {[%emt 0:00:05]} 31. Rff2 {[%emt 0:00:28]} Bd4 {[%emt 0:01:45]} 32. Rfe2 {[%emt 0:01:15]} Bxc2+ {[%emt 0:00:49]} 33. Rxc2 {[%emt 0:00:06]} Bb6 {[%emt 0:00:09]} 34. Kc1 {[%emt 0:01:25]} Kg7 {[%emt 0:01:41]} 35. Kd1 {[%emt 0:00:08]} Kf6 {[%emt 0:00:16]} 36. Re2 {[%emt 0:00:08]} g5 {[%emt 0:00:24]} 37. Ke1 {[%emt 0:00:10]} Kf5 {[%emt 0:01:09]} 38. Re7 {[%emt 0:01:23]} c6 {[%emt 0:01:16]} 39. Rxb7 {[%emt 0:00:40]} cxd5 {[%emt 0:00:08]} 40. b4 {[%emt 0:00:00]} g4 {[%emt 0:00:00]} 41. a4 {[%emt 0:03:34]} g3 {[%emt 0:05:43]} 42. Rg7 {[%emt 0:04:05]} Bf2+ {[%emt 0:01:09]} 43. Ke2 {[%emt 0:00:07]} Ke4 {[%emt 0:04:40]} 44. Rg4+ {[%emt 0:00:17]} Kf5 {[%emt 0:00:09]} 45. Kf3 {[%emt 0:00:16]} d4 {[%emt 0:01:41]} 46. Rh4 {[%emt 0:00:33]} d3 {[%emt 0:00:58]} 47. Rh1 {[%emt 0:01:25]} Ke5 {[%emt 0:01:24]} 48. b5 {[%emt 0:02:27]} Kd4 {[%emt 0:01:03]} 49. a5 {[%emt 0:00:34]} Kc3 {[%emt 0:01:56]} 50. Rc1+ {[%emt 0:10:29]} Kb4 {[%emt 0:04:14]} 51. b6 {[%emt 0:01:41]} axb6 {[%emt 0:00:07]} 52. axb6 {[%emt 0:00:06]} Bxb6 {[%emt 0:04:50]} 53. Rb1+ {[%emt 0:00:31]} Kc5 {[%emt 0:02:22]} 54. Kxg3 {[%emt 0:00:15]} Ba5 {[%emt 0:00:27]} 55. Kf3 {[%emt 0:00:26]} Kd4 {[%emt 0:00:52]} 56. Ra1 {[%emt 0:01:58]} Bb4 {[%emt 0:02:36]} 57. Rh1 {[%emt 0:05:37]} Kc3 {[%emt 0:01:07]} 58. Rh5 {[%emt 0:01:22]} Bc5 {[%emt 0:03:44]} 59. Rf5 {[%emt 0:01:25]} Kd2 {[%emt 0:01:15]} 60. Rh5 {[%emt 0:05:13]} Kc1 {[%emt 0:00:15]} 61. Rh1+ $1 {[%emt 0:01:15]} Kc2 {[%emt 0:00:05]} 62. Ra1 {[%emt 0:01:49]} Bd4 {[%emt 0:00:28]} 63. Rh1 {[%emt 0:00:51]} (63. Ra2+ $11 Kb3 64. Rd2) 63... d5 {[%emt 0:00:11]} 64. Rf1 {[%emt 0:01:38]} Bf6 {[%emt 0:00:39]} 65. Rg1 {[%emt 0:03:55]} Bh4 {[%emt 0:01:20]} 66. Ke3 {[%emt 0:01:12]} Bf6 {[%emt 0:01:30]} 67. Rg2+ {[%emt 0:03:11]} Kc3 {[%emt 0:00:05]} 68. Ra2 {[%emt 0:00:56]} Bg5+ {[%emt 0:00:47]} 69. Kf2 {[%emt 0:00:15]} Bh4+ {[%emt 0:00:33]} 70. Ke3 {[%emt 0:00:49]} Bg5+ {[%emt 0:00:34]} 71. Kf2 {[%emt 0:00:10]} Kb3 {[%emt 0:00:36]} 72. Ra5 {[%emt 0:00:14]} Kc4 {[%emt 0:00:32]} 73. Ke1 {[%emt 0:00:10]} Bf6 {[%emt 0:00:48]} 74. Kd1 {[%emt 0:00:07]} Bc3 {[%emt 0:00:17]} 75. Ra8 {[%emt 0:00:30]} d4 {[%emt 0:00:45]} 76. Rc8+ {[%emt 0:00:11]} Kb3 {[%emt 0:00:05]} 77. Rb8+ {[%emt 0:00:04]} Kc4 {[%emt 0:00:38]} 1/2-1/2

[Event "ROU-chT Women Superliga 2018"]
[Site "Sovata"]
[Date "2018.12.01"]
[Round "7"]
[White "Pelin, Ana-Maria"]
[Black "Lehaci, Miruna-Daria"]
[Result "1/2-1/2"]
[ECO "E14"]
[WhiteElo "1775"]
[BlackElo "2139"]
[Annotator "NA"]
[PlyCount "55"]
[EventDate "2018.11.24"]
[EventType "team-tourn"]
[EventCountry "ROU"]
[SourceTitle "playchess.com"]
[Source "ChessBase"]
[SourceQuality "1"]
[TimeControl "40/5400+30:1800+30"]

1. d4 {[%emt 0:00:00]} Nf6 {[%emt 0:00:00]} 2. c4 {[%emt 0:00:00]} e6 {[%emt 0:00:00]} 3. Nf3 {[%emt 0:00:00]} b6 {[%emt 0:00:00]} 4. e3 {[%emt 0:00:40]} Bb7 {[%emt 0:00:47]} 5. Nc3 {[%emt 0:00:20]} Bb4 {[%emt 0:00:32]} 6. Bd2 {[%emt 0:00:50]} O-O {[%emt 0:01:38]} 7. Bd3 {[%emt 0:00:12]} d5 {[%emt 0:01:00]} 8. cxd5 {[%emt 0:01:49]} exd5 {[%emt 0:00:32]} 9. O-O {[%emt 0:00:15]} a6 {[%emt 0:02:20]} 10. Rc1 {[%emt 0:00:31]} Re8 {[%emt 0:03:39]} 11. a3 {[%emt 0:00:44]} Bd6 {[%emt 0:00:05]} 12. Qc2 {[%emt 0:13:41]} Nbd7 {[%emt 0:06:58]} 13. Rfd1 {[%emt 0:18:06]} h6 {[%emt 0:08:52]} 14. Ne2 {[%emt 0:12:57]} c5 {[%emt 0:11:39]} 15. Ng3 {[%emt 0:04:03]} Rc8 {[%emt 0:07:10]} 16. Qb1 {[%emt 0:01:58]} Ne4 {[%emt 0:07:32]} 17. Be1 {[%emt 0:01:43]} Ndf6 {[%emt 0:02:44]} 18. dxc5 {[%emt 0:06:16]} bxc5 {[%emt 0:00:22]} 19. Nf5 {[%emt 0:03:55]} Bb8 {[%emt 0:01:38]} 20. b4 {[%emt 0:01:22]} Qd7 {[%emt 0:10:18]} 21. Ng3 {[%emt 0:02:27]} Bd6 {[%emt 0:05:03]} 22. bxc5 {[%emt 0:02:33]} Nxc5 {[%emt 0:04:00]} 23. Bf5 {[%emt 0:02:04]} Ne6 {[%emt 0:00:04]} 24. Bb4 {[%emt 0:02:51]} Rb8 {[%emt 0:01:14]} 25. Bxd6 {[%emt 0:04:54]} Qxd6 {[%emt 0:00:05]} 26. Qa1 {[%emt 0:00:32]} a5 {[%emt 0:04:45]} 27. e4 {[%emt 0:01:13]} Qe7 {[%emt 0:02:59]} 28. e5 {[%emt 0:05:48]} 1/2-1/2